bitfinex/quotes_SOLUSD_20240727
["timestamp","ask_amount","ask_price","bid_price","bid_amount"]
[1722062531300,0.7980984,184.75,184.74,31.42]
[1722062532301,0.7980984,184.75,184.69,403.3636]
[1722062532302,0.7980984,184.75,184.7,1.08229541]
[1722062532607,0.7980984,184.75,184.72,11.42]
[1722062533577,0.7980984,184.75,184.69,387.4]
[1722062533778,0.7980984,184.75,184.71,11.42]
[1722062535008,0.7980984,184.75,184.68,11.42]
[1722062535009,28.4395984,184.75,184.68,11.42]
[1722062535911,28.4395984,184.75,184.69,11.42]
[1722062536412,17.0195984,184.75,184.69,11.42]
[1722062537598,17.0195984,184.75,184.64,15.9636]
[1722062537599,17.0195984,184.75,184.7,12.50261904]
[1722062537804,17.0195984,184.75,184.7,11.42]
[1722062538007,17.0195984,184.75,184.71,12.50261924]
[1722062538197,0.7980984,184.75,184.73,11.42]
[1722062538389,0.7980984,184.75,184.68,11.42]
[1722062538390,0.7980984,184.75,184.74,11.42]
[1722062538589,0.7980984,184.75,184.73,11.42]
[1722062538889,0.7980984,184.75,184.72,11.42]
[1722062540216,0.7980984,184.75,184.73,11.42]
[1722062540698,0.7980984,184.75,184.72,11.42]
[1722062541511,0.7980984,184.75,184.71,11.42]
[1722062542793,0.7980984,184.75,184.72,11.42]
[1722062544010,0.7980984,184.75,184.73,11.42]
[1722062544226,0.7980984,184.75,184.72,11.42]
[1722062548003,0.7980984,184.75,184.66,1.08244471]
[1722062548205,0.7980984,184.75,184.71,11.42]
[1722062548523,0.7980984,184.75,184.72,12.50243705]
[1722062548822,0.7980984,184.75,184.72,11.42]
[1722062549408,0.7980984,184.75,184.73,11.42]
[1722062552822,0.7980984,184.75,184.74,1.0823996]
[1722062554300,0.7980984,184.75,184.73,11.42]
[1722062555036,0.7980984,184.75,184.74,12.50235565]
[1722062555324,0.7980984,184.75,184.74,11.42]
[1722062558504,0.7980984,184.75,184.72,11.42]
[1722062558819,0.7980984,184.75,184.73,20.0]
[1722062559328,0.7980984,184.75,184.72,21.08239472]
[1722062560522,0.7980984,184.75,184.72,32.50239472]
[1722062560823,0.7980984,184.75,184.73,11.42]
[1722062561015,0.7980984,184.75,184.72,32.50239472]
[1722062562729,0.7980984,184.75,184.74,11.42]
[1722062563105,0.7980984,184.75,184.74,31.42]
[1722062563620,0.7980984,184.75,184.74,31.76]
[1722062565130,6.5241,184.84,184.74,94.16198309]
[1722062565425,0.7980984,184.94,184.82,11.42]
[1722062565426,6.5241,184.89,184.82,11.42]
[1722062565634,11.42,184.88,184.83,1.08173708]
[1722062565824,11.42,184.88,184.82,11.42]
[1722062566236,6.5241,184.89,184.83,20.0]
[1722062566413,6.5241,184.89,184.84,11.42]
[1722062566813,17.9441,184.89,184.85,20.0]
[1722062567120,17.9441,184.89,184.83,31.42]
[1722062567523,6.5241,184.89,184.83,31.42]
[1722062568239,16.5162,184.93,184.85,11.42]
[1722062568531,27.9362,184.93,184.85,1.08150865]
[1722062568740,11.42,184.91,184.8,21.08151652]
[1722062569043,11.42,184.91,184.84,11.42]
[1722062569229,11.42,184.91,184.85,20.0]
[1722062569432,16.5162,184.93,184.85,31.42]
[1722062569733,16.5162,184.93,184.85,20.0]
[1722062569940,11.42,184.92,184.84,1.42151609]
[1722062570131,11.42,184.92,184.85,11.76]
[1722062570935,7.3221984,184.94,184.87,11.42]
[1722062571125,11.42,184.93,184.87,11.42]
[1722062571722,11.42,184.92,184.85,11.59]
[1722062572035,11.42,184.91,184.86,20.0]
[1722062573816,11.42,184.92,184.86,20.0]
[1722062574342,11.42,184.93,184.86,31.42]
[1722062574515,18.7421984,184.94,184.87,11.42]
[1722062574709,11.42,184.93,184.88,20.0]
[1722062575340,18.7421984,184.94,184.87,31.42]
[1722062580452,11.42,184.92,184.87,20.0]
[1722062580619,11.42,184.91,184.84,11.42]
[1722062580827,7.3221984,184.94,184.85,31.42]
[1722062581033,11.42,184.94,184.87,11.42]
[1722062581344,11.42,184.94,184.88,20.0]
[1722062582214,11.42,184.93,184.88,20.0]
[1722062582831,11.42,184.93,184.87,20.0]
[1722062583650,11.42,184.91,184.84,11.42]
[1722062583823,11.42,184.91,184.85,20.0]
[1722062584224,6.3723,184.95,184.85,20.0]
[1722062584524,11.42,184.92,184.85,31.42]
[1722062585130,11.42,184.91,184.85,20.0]
[1722062585543,11.42,184.92,184.85,31.42]
[1722062585735,11.42,184.93,184.86,11.42]
[1722062585934,11.42,184.93,184.85,20.0]
[1722062586136,11.42,184.92,184.86,11.42]
[1722062586738,11.42,184.92,184.85,11.42]
[1722062587058,11.42,184.91,184.8,21.08144898]
[1722062587344,23.1991,184.95,184.8,21.08144898]
[1722062587345,11.42,184.9,184.83,11.42]
[1722062587522,11.42,184.9,184.84,20.0]
[1722062590845,11.42,184.9,184.84,32.50168749]
[1722062591543,11.42,184.9,184.84,20.0]
[1722062591856,11.42,184.9,184.84,11.42]
[1722062592042,11.42,184.9,184.85,20.0]
[1722062593345,11.42,184.91,184.86,1.08168853]
[1722062594751,11.42,184.91,184.85,20.0]
[1722062595435,11.42,184.91,184.86,1.08169417]
[1722062603845,11.42,184.91,184.85,20.0]
[1722062604354,11.42,184.9,184.85,20.0]
[1722062604523,11.42,184.9,184.84,11.42]
[1722062604729,11.42,184.9,184.85,20.0]
[1722062605350,11.42,184.9,184.8,21.08169765]
[1722062605527,11.42,184.9,184.81,0.34]
[1722062605730,52.0523,184.95,184.84,11.42]
[1722062605936,11.42,184.92,184.85,32.50164389]
[1722062606131,11.42,184.9,184.85,20.0]
[1722062606552,11.42,184.9,184.84,20.0]
[1722062607132,11.42,184.91,184.84,31.42]
[1722062607534,11.42,184.91,184.85,11.42]
[1722062607959,11.42,184.91,184.84,20.0]
[1722062608134,11.42,184.91,184.82,1.08164389]
[1722062608135,11.42,184.89,184.82,31.42]
[1722062608335,11.42,184.88,184.82,20.0]
[1722062608555,11.42,184.88,184.81,11.42]
[1722062608856,11.42,184.91,184.84,11.42]
[1722062609036,11.42,184.91,184.85,20.0]
[1722062610441,11.42,184.9,184.85,20.0]
[1722062610662,11.42,184.9,184.83,11.42]
[1722062610858,11.42,184.9,184.84,20.0]
[1722062611241,11.42,184.89,184.82,11.42]
[1722062611461,11.42,184.89,184.83,20.0]
[1722062611847,11.42,184.89,184.83,31.42]
[1722062612242,11.42,184.9,184.83,31.42]
[1722062613056,11.42,184.9,184.83,20.0]
[1722062613359,11.42,184.9,184.82,11.42]
[1722062613549,11.42,184.9,184.83,31.42]
[1722062613861,11.42,184.9,184.84,20.0]
[1722062614770,11.42,184.9,184.82,11.42]
[1722062615065,11.42,184.9,184.83,20.0]
[1722062616965,11.42,184.88,184.83,20.0]
[1722062617257,11.42,184.88,184.82,20.0]
[1722062619145,11.42,184.87,184.79,16.0745]
[1722062619463,11.42,184.87,184.8,11.42]
[1722062619662,11.42,184.85,184.78,11.42]
[1722062620959,11.42,184.85,184.79,11.42]
[1722062621151,11.42,184.86,184.8,20.0]
[1722062626969,11.42,184.83,184.76,11.42]
[1722062627155,11.42,184.82,184.72,6.3173]
[1722062627362,15.7848,184.84,184.72,6.3173]
[1722062627363,11.42,184.8,184.73,11.42]
[1722062627969,11.42,184.8,184.74,11.42]
[1722062628552,11.42,184.8,184.75,20.0]
[1722062632773,11.42,184.79,184.74,20.0]
[1722062632960,11.42,184.79,184.73,20.0]
[1722062633154,11.42,184.76,184.68,387.4]
[1722062633377,11.42,184.76,184.69,11.42]
[1722062633678,11.42,184.76,184.67,6.3173]
[1722062633869,11.42,184.76,184.69,11.42]
[1722062634259,11.42,184.76,184.66,16.1377]
[1722062634260,11.42,184.74,184.67,11.42]
[1722062635157,11.42,184.73,184.63,12.25986234]
[1722062635476,11.42,184.77,184.64,11.42]
[1722062635477,11.42,184.71,184.64,11.42]
[1722062635674,11.42,184.7,184.63,11.42]
[1722062636895,11.42,184.69,184.62,2.15507564]
[1722062637085,11.42,184.69,184.62,11.42]
[1722062637383,21.8709,184.72,184.67,11.42]
[1722062637676,11.42,184.76,184.7,11.42]
[1722062638187,21.8709,184.77,184.71,11.42]
[1722062638369,21.8709,184.77,184.71,31.42]
[1722062638686,11.42,184.78,184.71,31.42]
[1722062639062,11.42,184.78,184.72,11.42]
[1722062639688,11.42,184.78,184.71,31.42]
[1722062639984,11.42,184.77,184.71,20.0]
[1722062640193,11.42,184.75,184.71,20.0]
[1722062640360,11.42,184.74,184.68,11.42]
[1722062640564,11.42,184.74,184.69,20.0]
[1722062640770,11.42,184.74,184.68,20.0]
[1722062641400,45.0,184.76,184.69,11.42]
[1722062641576,11.42,184.75,184.7,20.0]
[1722062642295,45.0,184.76,184.7,20.0]
[1722062642499,56.42,184.76,184.7,20.0]
[1722062642794,21.8709,184.81,184.7,20.0]
[1722062642795,11.42,184.77,184.7,20.0]
[1722062642976,56.42,184.76,184.69,11.42]
[1722062643295,56.42,184.76,184.7,20.0]
[1722062643993,56.42,184.76,184.69,20.0]
[1722062644198,11.42,184.75,184.68,11.42]
[1722062644495,56.42,184.74,184.69,20.0]
[1722062644998,56.42,184.74,184.68,20.0]
[1722062645582,11.42,184.73,184.68,20.0]
[1722062648398,11.42,184.73,184.67,20.0]
[1722062649789,11.42,184.72,184.67,20.0]
[1722062649990,11.42,184.73,184.66,20.0]
[1722062650203,11.42,184.73,184.67,11.42]
[1722062650381,11.42,184.73,184.68,20.0]
[1722062652098,56.42,184.74,184.68,20.0]
[1722062652394,45.0,184.74,184.68,31.42]
[1722062652797,45.0,184.74,184.69,11.42]
[1722062653586,21.6243,184.75,184.69,11.42]
[1722062654087,15.4615,184.75,184.7,11.42]
[1722062655000,11.42,184.77,184.71,11.42]
[1722062655490,11.42,184.78,184.71,11.42]
[1722062655692,45.0,184.77,184.71,11.42]
[1722062655893,56.42,184.77,184.71,11.42]
[1722062656895,17.5828,184.79,184.72,11.42]
[1722062657205,45.0,184.78,184.73,11.42]
[1722062657795,45.0,184.78,184.72,11.42]
[1722062658711,45.0,184.78,184.71,11.42]
[1722062658712,11.42,184.77,184.71,11.42]
[1722062658913,11.42,184.76,184.7,11.42]
[1722062660313,11.42,184.76,184.69,11.42]
[1722062660492,11.42,184.76,184.7,20.0]
[1722062661500,11.42,184.74,184.67,11.42]
[1722062661694,11.42,184.74,184.68,20.0]
[1722062661893,45.0,184.73,184.68,20.0]
[1722062662887,45.0,184.73,184.68,18.74879694]
[1722062663300,45.0,184.73,184.68,30.16879694]
[1722062663510,45.0,184.74,184.68,30.16879694]
[1722062664893,45.0,184.74,184.69,11.42]
[1722062665801,11.42,184.77,184.7,11.42]
[1722062666004,11.5746,184.79,184.7,11.42]
[1722062666207,11.42,184.77,184.7,11.42]
[1722062666407,11.42,184.76,184.69,11.42]
[1722062666791,11.42,184.76,184.7,11.42]
[1722062667101,11.42,184.77,184.7,11.42]
[1722062670404,11.42,184.77,184.69,11.42]
[1722062670615,45.0,184.76,184.69,11.42]
[1722062670911,11.42,184.76,184.69,11.42]
[1722062672301,45.0,184.77,184.69,11.42]
[1722062672507,45.0,184.78,184.7,11.42]
[1722062672812,11.42,184.77,184.7,11.42]
[1722062673015,45.0,184.76,184.7,11.42]
[1722062676720,45.0,184.76,184.69,11.42]
[1722062676925,45.0,184.76,184.68,18.74879694]
[1722062677096,45.0,184.76,184.69,11.42]
[1722062678612,45.0,184.76,184.65,1.08265512]
[1722062678931,45.0,184.76,184.69,11.42]
[1722062680717,11.42,184.76,184.69,11.42]
[1722062681326,45.0,184.77,184.7,11.42]
[1722062681530,56.42,184.77,184.7,11.42]
[1722062681736,45.0,184.77,184.7,11.42]
[1722062684045,45.0,184.77,184.65,1.08269265]
[1722062684046,45.0,184.77,184.72,11.42]
[1722062684223,6.1628,184.79,184.72,11.42]
[1722062684224,45.0,184.78,184.72,11.42]
[1722062684425,6.1628,184.79,184.73,11.42]
[1722062684612,6.1628,184.79,184.69,1.08256554]
[1722062684613,15.4615,184.8,184.76,11.42]
[1722062684819,11.42,184.83,184.76,11.42]
[1722062685020,16.8303,184.83,184.76,11.42]
[1722062685238,11.42,184.82,184.76,11.42]
[1722062686836,45.0,184.81,184.76,11.42]
[1722062700030,56.42,184.81,184.75,11.42]
[1722062700232,33.5228,184.88,184.78,11.42]
[1722062700233,22.3315,184.88,184.78,11.42]
[1722062700432,11.42,184.85,184.78,11.42]
[1722062701155,11.42,184.84,184.74,15.1276]
[1722062701348,5.4098,184.85,184.74,15.1276]
[1722062701349,11.42,184.83,184.76,11.42]
[1722062701845,45.0,184.82,184.76,11.42]
[1722062702460,45.0,184.82,184.77,11.42]
[1722062702960,45.0,184.83,184.77,11.42]
[1722062703257,56.42,184.83,184.76,11.42]
[1722062703648,22.3315,184.88,184.77,11.42]
[1722062703849,20.0,184.87,184.78,11.42]
[1722062704540,11.42,184.85,184.78,11.42]
[1722062704743,20.0,184.87,184.78,11.42]
[1722062704942,11.42,184.85,184.78,11.42]
[1722062705147,45.0,184.84,184.78,11.42]
[1722062706556,20.0,184.87,184.79,12.50219809]
[1722062706855,20.0,184.87,184.79,11.42]
[1722062707038,11.42,184.86,184.79,11.42]
[1722062708448,11.42,184.86,184.8,11.42]
[1722062710159,11.42,184.87,184.8,11.42]
[1722062710353,45.0,184.86,184.81,11.42]
[1722062710559,11.42,184.88,184.81,11.42]
[1722062710861,11.4272,184.92,184.82,12.50200094]
[1722062711066,11.42,184.89,184.82,11.42]
[1722062711360,45.0,184.88,184.82,11.42]
[1722062712564,56.42,184.88,184.81,11.42]
[1722062712763,11.4272,184.92,184.82,11.42]
[1722062713065,20.0,184.91,184.85,11.42]
[1722062713259,11.42,184.9,184.83,11.42]
[1722062714553,11.42,184.9,184.84,11.42]
[1722062714752,5.4072,184.94,184.84,11.42]
[1722062715052,11.42,184.9,184.84,11.42]
[1722062715446,11.42,184.91,184.84,11.42]
[1722062715856,45.0,184.93,184.86,11.42]
[1722062716071,11.42,184.92,184.86,11.42]
[1722062716254,11.42,184.92,184.85,11.42]
[1722062716773,11.42,184.92,184.86,11.42]
[1722062716948,11.42,184.92,184.86,12.50175395]
[1722062717148,11.42,184.92,184.87,1.08170615]
[1722062717665,45.0,184.93,184.87,1.08170615]
[1722062717961,56.42,184.93,184.86,11.42]
[1722062718166,11.42,184.9,184.84,11.42]
[1722062718473,11.42,184.9,184.82,6.0408]
[1722062718474,11.42,184.92,184.86,11.42]
[1722062718649,5.4068,184.95,184.86,11.42]
[1722062718850,11.42,184.93,184.87,11.42]
[1722062720554,11.42,184.93,184.86,11.42]
[1722062724077,45.0,184.94,184.86,11.42]
[1722062724280,22.3315,184.98,184.89,11.42]
[1722062724567,11.42,184.96,184.89,11.42]
[1722062725955,45.0,184.95,184.89,11.42]
[1722062726967,27.7375,184.98,184.89,11.42]
[1722062727156,11.42,184.96,184.89,11.42]
[1722062728762,11.42,184.95,184.88,11.42]
[1722062729479,11.42,184.95,184.89,11.42]
[1722062730264,11.42,184.95,184.88,11.42]
[1722062730484,11.42,184.94,184.87,11.42]
[1722062730659,11.42,184.94,184.88,20.0]
[1722062730858,11.42,184.95,184.88,31.42]
[1722062731074,11.42,184.95,184.89,11.42]
[1722062733285,1.0,185.0,184.9,11.42]
[1722062733468,11.42,184.97,184.9,11.42]
[1722062734886,11.42,184.98,184.91,11.42]
[1722062735284,11.42,184.97,184.91,11.42]
[1722062736790,11.42,184.96,184.9,11.42]
[1722062739792,56.42,184.95,184.89,15.5806]
[1722062739978,11.42,184.94,184.89,15.5806]
[1722062740372,56.42,184.95,184.89,15.5806]
[1722062740695,45.0,184.95,184.89,15.5806]
[1722062740871,56.42,184.95,184.89,15.5806]
[1722062741970,45.0,184.95,184.89,15.5806]
[1722062742180,56.42,184.95,184.89,15.5806]
[1722062743187,56.42,184.95,184.89,27.0006]
[1722062744985,11.42,184.97,184.9,11.42]
[1722062745189,11.42,184.97,184.91,11.42]
[1722062746000,6.4056,185.0,184.91,11.42]
[1722062746180,11.42,184.97,184.91,11.42]
[1722062746891,11.42,184.98,184.91,11.42]
[1722062747600,65.0,184.99,184.92,11.42]
[1722062747892,11.42,184.98,184.92,11.42]
[1722062748090,11.42,184.98,184.91,11.42]
[1722062749780,45.0,184.99,184.93,11.42]
[1722062752209,45.0,184.99,184.96,11.42]
[1722062752379,1.0,185.0,184.96,11.42]
[1722062752778,1.0,185.0,184.95,11.42]
[1722062752992,12.42,185.0,184.93,11.42]
[1722062753208,1.0,185.0,184.9,1.08134657]
[1722062753505,1.0,185.0,184.95,11.42]
[1722062753705,1.0,185.0,184.94,11.42]
[1722062754481,46.0,185.0,184.94,11.42]
[1722062757513,1.0,185.0,184.95,12.50129427]
[1722062757713,1.0,185.0,184.95,11.42]
[1722062759486,1.0,185.0,184.96,12.50122842]
[1722062759689,1.0,185.0,184.99,11.42]
[1722062761327,1.0,185.0,184.95,21.8999]
[1722062761485,1.0,185.0,184.97,11.42]
[1722062761685,1.0,185.0,184.98,11.42]
[1722062762199,1.0,185.0,184.95,21.8999]
[1722062762200,1.0,185.0,184.99,11.42]
[1722062762585,1.0,185.0,184.97,11.42]
[1722062762882,1.0,185.0,184.95,26.873]
[1722062763189,1.0,185.0,184.95,11.42]
[1722062765196,1.0,185.0,184.94,11.42]
[1722062765397,57.42,185.0,184.93,11.42]
[1722062765610,57.42,185.0,184.91,15.453]
[1722062765787,57.42,185.0,184.93,11.42]
[1722062765987,11.42,184.99,184.92,20.0]
[1722062766211,11.42,184.99,184.93,11.42]
[1722062766413,11.42,184.99,184.92,31.42]
[1722062766820,45.0,184.98,184.92,31.42]
[1722062767313,45.0,184.98,184.93,11.42]
[1722062767903,1.0,185.0,184.93,11.42]
[1722062768208,1.0,185.0,184.95,11.42]
[1722062770492,1.0,185.0,184.97,11.42]
[1722062771604,1.0,185.0,184.98,11.42]
[1722062772415,1.0,185.0,184.92,20.0]
[1722062772599,1.0,185.0,184.96,11.42]
[1722062772800,1.0,185.0,184.97,20.0]
[1722062773918,1.0,185.0,184.96,11.42]
[1722062776498,1.0,185.0,184.98,11.42]
[1722062778725,1.0,185.0,184.92,1.08111815]
[1722062778726,1.0,185.0,184.97,11.42]
[1722062778900,1.0,185.0,184.96,11.42]
[1722062779410,1.0,185.0,184.95,11.42]
[1722062779609,1.0,185.0,184.96,20.0]
[1722062781928,1.0,185.0,184.91,15.623]
[1722062782225,1.0,185.0,184.94,11.42]
[1722062782420,1.0,185.0,184.95,20.0]
[1722062786628,1.0,185.0,184.94,11.42]
[1722062786937,12.42,185.0,184.93,11.42]
[1722062787123,12.42,185.0,184.94,20.0]
[1722062787510,12.42,185.0,184.94,31.42]
[1722062787511,1.0,185.0,184.94,31.42]
[1722062793320,12.42,185.0,184.94,20.0]
[1722062793520,45.0,184.99,184.93,11.42]
[1722062793824,1.0,185.0,184.95,11.42]
[1722062798635,1.0,185.0,184.88,1.08128945]
[1722062798636,11.42,184.97,184.87,393.63145123]
[1722062798841,11.42,184.97,184.89,11.42]
[1722062799946,11.42,184.95,184.89,11.42]
[1722062800136,11.42,184.95,184.9,20.0]
[1722062800811,56.42,184.96,184.9,20.0]
[1722062801539,45.0,184.96,184.9,20.0]
[1722062801728,1.0,185.0,184.95,22.84]
[1722062801931,1.0,185.0,184.99,11.42]
[1722062803424,1.0,185.0,184.95,45.68]
[1722062803626,1.0,185.0,184.96,20.0]
[1722062805843,1.0,185.0,184.99,11.42]
[1722062806339,1.0,185.0,184.98,11.42]
[1722062806527,1.0,185.0,184.97,11.42]
[1722062807127,1.0,185.0,184.98,11.42]
[1722062808840,1.0,185.0,184.96,20.0]
[1722062809148,1.0,185.0,184.97,11.42]
[1722062809347,1.0,185.0,184.98,11.42]
[1722062809753,1.0,185.0,184.97,11.42]
[1722062810933,1.0,185.0,184.92,20.0]
[1722062811249,1.0,185.0,184.96,11.42]
[1722062811748,1.0,185.0,184.97,20.0]
[1722062814634,1.0,185.0,184.96,11.42]
[1722062814841,1.0,185.0,184.94,11.42]
[1722062815041,1.0,185.0,184.95,20.0]
[1722062815243,1.0,185.0,184.91,29.28159613]
[1722062815244,57.42,185.0,184.93,11.42]
[1722062815631,11.42,184.99,184.92,11.42]
[1722062816545,11.42,184.99,184.93,20.0]
[1722062817630,11.42,184.99,184.91,11.42]
[1722062817851,11.42,184.99,184.92,20.0]
[1722062818643,46.0,185.0,184.92,20.0]
[1722062818832,57.42,185.0,184.93,11.42]
[1722062819031,57.42,185.0,184.94,20.0]
[1722062820249,46.0,185.0,184.94,20.0]
[1722062820647,57.42,185.0,184.94,20.0]
[1722062821252,57.42,185.0,184.93,11.42]
[1722062821470,57.42,185.0,184.94,20.0]
[1722062822844,12.42,185.0,184.94,20.0]
[1722062823160,12.42,185.0,184.94,31.42]
[1722062823454,1.0,185.0,184.94,31.42]
[1722062825237,1.0,185.0,184.94,20.0]
[1722062825562,12.42,185.0,184.94,20.0]
[1722062827166,1.0,185.0,184.94,31.42]
[1722062831162,1.0,185.0,184.95,11.42]
[1722062834772,1.0,185.0,184.94,31.42]
[1722062838372,1.0,185.0,184.95,11.42]
[1722062840878,1.0,185.0,184.94,20.0]
[1722062840879,1.0,185.0,184.97,11.42]
[1722062841265,1.0,185.0,184.94,20.0]
[1722062841471,1.0,185.0,184.97,11.42]
[1722062843683,1.0,185.0,184.93,20.0]
[1722062843866,1.0,185.0,184.97,11.42]
[1722062845483,1.0,185.0,184.93,20.0]
[1722062845653,1.0,185.0,184.96,11.42]
[1722062846168,1.0,185.0,184.97,11.42]
[1722062846556,1.0,185.0,184.96,11.42]
[1722062847674,1.0,185.0,184.93,20.0]
[1722062847880,1.0,185.0,184.98,11.42]
[1722062851259,1.0,185.0,184.99,11.42]
[1722062852286,1.0,185.0,184.98,11.42]
[1722062853377,1.0,185.0,184.99,11.42]
[1722062855864,1.0,185.0,184.98,11.42]
[1722062857283,1.0,185.0,184.97,11.42]
[1722062860188,1.0,185.0,184.98,11.42]
[1722062865286,1.0,185.0,184.99,11.42]
[1722062865490,1.0,185.0,184.99,12.5010128]
[1722062865695,1.0,185.0,184.99,11.42]
[1722062866075,1.0,185.0,184.99,31.42]
[1722062866693,0.7980984,185.13,184.99,54.4688]
[1722062866896,0.7980984,185.13,185.07,11.42]
[1722062867200,12.2180984,185.13,185.06,11.42]
[1722062868191,12.2180984,185.13,185.05,11.42]
[1722062868192,11.42,185.12,185.05,11.42]
[1722062868878,45.0,185.11,185.05,11.42]
[1722062871397,56.42,185.12,185.05,11.42]
[1722062872586,11.42,185.1,185.03,11.42]
[1722062872906,50.4019,185.12,185.01,11.42]
[1722062872907,11.42,185.08,185.01,11.42]
[1722062873201,11.42,185.08,185.02,20.0]
[1722062873396,45.0,185.07,185.02,20.0]
[1722062873576,5.4019,185.12,185.02,31.42]
[1722062873782,45.0,185.11,185.02,31.42]
[1722062874206,11.42,185.09,185.02,31.42]
[1722062874999,56.42,185.08,185.02,31.42]
[1722062875204,45.0,185.08,185.02,31.42]
[1722062875586,45.0,185.08,185.03,11.42]
[1722062875785,56.42,185.09,185.02,20.0]
[1722062875993,56.42,185.09,185.02,11.42]
[1722062877079,56.42,185.09,185.0,20.0]
[1722062877304,56.42,185.09,185.02,11.42]
[1722062877507,11.42,185.08,185.01,11.42]
[1722062877700,45.0,185.07,185.02,20.0]
[1722062882291,45.0,185.07,185.01,11.42]
[1722062882908,45.0,185.07,185.02,20.0]
[1722062884796,45.0,185.07,185.01,20.0]
[1722062890716,56.42,185.07,184.95,15.2756]
[1722062891016,11.42,185.05,184.97,11.42]
[1722062891220,45.0,185.04,184.97,11.42]
[1722062891591,45.0,185.04,184.98,11.42]
[1722062895700,56.42,185.04,184.95,15.2756]
[1722062895941,56.42,185.04,184.97,11.42]
[1722062898508,56.42,185.04,184.95,15.2756]
[1722062898702,56.42,185.04,184.97,11.42]
[1722062899109,11.42,185.02,184.92,6.14840681]
[1722062899314,45.0,185.01,184.95,11.42]
[1722062899633,11.42,185.0,184.93,11.42]
[1722062899828,45.0,184.99,184.93,11.42]
[1722062900600,45.0,184.99,184.87,12.4866701]
[1722062900801,56.42,184.99,184.87,12.4866701]
[1722062901027,56.42,184.99,184.92,11.42]
[1722062902597,56.42,184.99,184.87,12.4866701]
[1722062902795,56.42,184.99,184.92,11.42]
[1722062906403,11.42,184.96,184.89,11.42]
[1722062906605,45.0,184.95,184.89,11.42]
[1722062908906,56.42,184.95,184.88,11.42]
[1722062909430,56.42,184.95,184.81,21.24080681]